Cogmind - Beta 13 @@@ ROGUE MODE // 2024.04.18 @ 08:25:35 Player: N00Bk1llr Result: Destroyed by AG-93527 with Assembled Focal Cannon Performance ------------- Evolutions (3) 1500 Regions Visited (9) 1800 Robots Destroyed (92) 460 Value Destroyed (2851) 2851 Prototype IDs (27) 540 Alien Tech Used (1) 200 Bonus (2736) 2736 TOTAL SCORE: 10087 Bonus ------- High Alert Combat Kills 230 Follower Combat Kills 222 Met Imprinter 300 Destroyed Z-Imprinter 1000 Triggered Deep Caves Wall 500 Exposed GOLEM Chamber 500 Friendly Fire -16 Cogmind --------- Core Integrity 0/700 Matter 250/300 Energy 86/100 System Corruption 7% Temperature Cool (6) Movement Core (50) Location -7/Deep Caves Parts ------- > --- POWER (1) -------- (None) > --- PROPULSION (6) --- Assembled Alloy Leg > --- UTILITY (5) ------ Experimental Heat Sink Improved Signal Interpreter GOLEM Unit > --- WEAPON (2) ------- (None) > --- INVENTORY (5) ---- Zionite Light DM Reactor Enhanced Flexi-carbon Leg Experimental Heat Sink Hacking Drone Bay (1/1) Powered Hammer Peak State ------------ > --- POWER ------------ Zionite Light DM Reactor > --- PROPULSION ------- Zionite Composite Leg I Enhanced Flexi-carbon Leg Flightbrick > --- UTILITY ---------- Experimental Heat Sink Large Storage Unit Improved Sensor Array Improved Signal Interpreter Force Booster Utility Shielding Zionite Heavy Carapace > --- WEAPON ----------- Zionite Laser-M RU-N14's Throwing Claymores > --- INVENTORY -------- Improved Deuterium Engine Zionite Light DM Reactor VTOL Module Experimental Heat Sink Experimental Heat Sink Zionite Biocell Microactuators Zionite Weapon Casing Zionite Light Carapace Improved Light Armor Plating Makeshift System Restoration Module Hacking Drone Bay RU-N14's Throwing Claymores RU-N14's Throwing Claymores Powered Hammer [Rating: 111] Favorites ----------- Power Improved Deuterium Engine Engine Improved Deuterium Engine Power Core Light Nuclear Core Reactor Zionite Light DM Reactor Propulsion Light Treads Treads Light Treads Leg Carbon-fiber Leg Wheel Armored Huge Wheel Hover Unit Zionite Glidesys I Flight Unit Flightbrick Utility Large Storage Unit Device Improved Sensor Array Storage Large Storage Unit Processor Improved Signal Interpreter Protection Utility Shielding Weapon RU-N14's Throwing Claymores Energy Gun Zionite Laser-M Energy Cannon Advanced Beam Cannon Ballistic Gun Light Assault Rifle Ballistic Cannon Flak Cannon Launcher Mini Grenade Launcher Special Weapon RU-N14's Throwing Claymores Impact Weapon Powered Hammer Slashing Weapon Great Axe Piercing Weapon Makeshift Spear Build | -11 -10 -10 -10 -8 -7 -7 -7 -7 -7 ------- Run | Yrd Mat Min Sub Mat Fac Low Low Zio Dee Slots Evolved 6 | . . . . 4 2 . . . . Power . | . . . . . . . . . . Propulsion 4 | . . . . 3 1 . . . . Utility 2 | . . . . 1 1 . . . . Weapon . | . . . . . . . . . . Parts Attached 109 | 6 7 4 7 27 9 12 1 8 28 Power 9 | 1 2 . 1 1 . 1 . . 3 Engine 6 | 1 2 . 1 . . 1 . . 1 Core 1 | . . . . 1 . . . . . Reactor 2 | . . . . . . . . . 2 Propulsion 29 | 2 3 . 3 10 3 2 . . 6 Treads 16 | 2 3 . 3 8 . . . . . Leg 6 | . . . . 1 2 . . . 3 Wheel 4 | . . . . 1 1 1 . . 1 Hover 1 | . . . . . . . . . 1 Flight 2 | . . . . . . 1 . . 1 Utility 38 | 1 1 2 1 6 3 7 1 4 12 Device 14 | . . 1 . 1 2 2 1 4 3 Storage 7 | 1 1 1 . 2 . 1 . . 1 Processor 1 | . . . . . 1 . . . . Hackware . | . . . . . . . . . . Protection 16 | . . . 1 3 . 4 . . 8 Artifact . | . . . . . . . . . . Weapon 33 | 2 1 2 2 10 3 2 . 4 7 Energy Gun 6 | 1 . . . 3 . . . . 2 Energy Cannon 3 | . 1 . . 2 . . . . . Ballistic Gun 6 | 1 . 1 1 3 . . . . . Ballistic Cannon 1 | . . . . 1 . . . . . Launcher 4 | . . 1 1 1 1 . . . . Special Weapon 7 | . . . . . . . . 3 4 Impact Weapon 4 | . . . . . 2 . . 1 1 Slashing Weapon 1 | . . . . . . 1 . . . Piercing Weapon 1 | . . . . . . 1 . . . Special Melee Weapon . | . . . . . . . . . . Unidentified Prototypes 14 | . 1 . . . . . . 3 10 Parts Lost 19 | . 1 . 1 2 4 . . . 11 Power 3 | . 1 . 1 . . . . . 1 Propulsion 6 | . . . . 1 2 . . . 3 Utility 8 | . . . . 1 1 . . . 6 Weapon 2 | . . . . . 1 . . . 1 Highest Loss Streak 7 | . 1 . 1 1 4 . . . 7 To Critical Strikes . | . . . . . . . . . . Average Slot Usage (%) 80 | . 84 90 81 87 82 75 75 75 75 Engine 6 | . 13 14 13 4 . 4 6 5 1 Core 1 | . . . . 4 7 2 . . . Treads 17 | . 28 28 28 39 18 . . . . Leg 2 | . . . . . 12 9 . . 7 Wheel 2 | . . . . . 5 6 6 5 1 Flight 2 | . . . . . . 2 6 5 5 Device 7 | . . 5 . 1 6 8 12 15 16 Storage 7 | . 14 14 . 8 7 6 6 5 4 Processor 2 | . . . . . . 6 6 5 5 Protection 10 | . . . 13 9 6 11 18 17 13 Energy Cannon 6 | . 11 14 14 8 6 . . . . Ballistic Gun 3 | . 14 7 6 5 1 . . . . Launcher 1 | . . 6 5 1 . . . . . Special Weapon 2 | . . . . . . . . 8 4 Impact Weapon 1 | . . . . . 4 6 6 1 . Naked Turns . | . . . . . . . . . . Heaviest Build 75 | 11 18 29 31 74 75 62 53 61 61 Greatest Support 100 | 40 40 40 40 100 80 28 28 28 52 Greatest Overweight (x) 4 | 1 . . . 3 2 2 1 2 4 Average Overweight (x) . | . . . . . 1 1 1 1 . Largest Inventory Capacity 20 | 8 10 15 15 20 20 20 15 15 15 Average Capacity 14 | 7 9 14 5 16 20 18 15 15 14 Most Carried 20 | 5 10 10 12 19 20 20 15 15 15 Average Carried 13 | 3 8 10 5 14 19 17 15 14 13 Final Capacity 20 | 8 10 15 5 20 20 15 15 15 5 Final Carried 19 | 5 10 10 5 19 18 15 15 15 5 Class Distribution -------------------- 55% | Mutant 32% | Scavenger-Mutant 12% | Gladiator Dominant Class ---------------- Mutant | -10/Materials Mutant | -10/Mines Mutant | -10/Subcaves Scavenger-Mutant | -8/Materials Scavenger-Mutant | -7/Factory Gladiator | -7/Lower Caves Gladiator | -7/Lower Caves Mutant | -7/Zion Scavenger-Mutant | -7/Deep Caves Resources | -11 -10 -10 -10 -8 -7 -7 -7 -7 -7 ----------- Run | Yrd Mat Min Sub Mat Fac Low Low Zio Dee Matter Collected 1786 | 225 157 75 129 625 135 156 14 71 199 Remotely . | . . . . . . . . . . Salvage Created 3032 | . 494 113 242 1398 420 134 . . 231 Parts 198 | . 46 7 12 85 21 9 . . 18 Haulers Intercepted 5 | . 2 . . 3 . . . . . Recyclers Shooed . | . . . . . . . . . . Parts Field Recycled . | . . . . . . . . . . Retrieved Matter . | . . . . . . . . . . Parts Self-Destructed 15 | . . . 8 . . 7 . . . Prevented 1 | . . . . . . 1 . . . Kills | -11 -10 -10 -10 -8 -7 -7 -7 -7 -7 ------- Run | Yrd Mat Min Sub Mat Fac Low Low Zio Dee Combat Hostiles Destroyed 68 | . 10 5 5 30 8 4 . . 6 Melee 7 | . . . . . 4 3 . . . Guns 10 | . 5 . 2 1 . . . . 2 Cannons 30 | . 5 3 2 18 2 . . . . AOE 17 | . . 2 . 11 1 . . . 3 Classes Destroyed 19 | . 7 . 3 4 2 1 . . 2 Worker 4 | . 2 . . 1 1 . . . . Builder 5 | . 2 . . 3 . . . . . Tunneler 1 | . . . . 1 . . . . . Hauler 5 | . 2 . . 3 . . . . . Recycler 2 | . . . . 1 1 . . . . Minesweeper 1 | . . . . . . 1 . . . Operator 2 | . 2 . . . . . . . . Watcher 5 | . 1 . . 4 . . . . . Swarmer 16 | . 6 3 . 4 . 3 . . . Grunt 28 | . 4 2 . 18 4 . . . . Brawler 2 | . . . . 2 . . . . . Sentry 7 | . . . 1 5 1 . . . . Hunter 2 | . . . . . 2 . . . . Programmer 2 | . . . . . 1 1 . . . Heavy 1 | . . . . 1 . . . . . Cobbler 1 | . . . 1 . . . . . . Subdweller 4 | . . . 4 . . . . . . Z-Light 5 | . . . . . . . . . 5 Assembled 1 | . . . . . . . . . 1 Best Kill Streak 7 | . 3 3 3 7 3 3 . . 5 Combat Bots Only 6 | . 3 3 3 6 3 3 . . 5 Max Kills in Single Turn 5 | . 1 2 1 5 1 1 . . 3 Gunslinging . | . . . . . . . . . . Exploded 4 | . . 2 . 4 1 . . . 3 Melee 1 | . . . . . 1 1 . . . Uniques/NPCs Destroyed 1 | . . . . . . . . . 1 Z-Imprinter (-7/Deep Caves) Combat | -11 -10 -10 -10 -8 -7 -7 -7 -7 -7 -------- Run | Yrd Mat Min Sub Mat Fac Low Low Zio Dee Hostile Shots Fired 626 | . 64 13 20 111 120 32 . . 266 Missed 229 | . 11 6 6 23 45 12 . . 126 Damage Taken 7387 | . 486 118 241 1740 717 308 . . 3777 Core 984 | . 113 . 19 142 50 30 . . 630 Absorbed by Shields . | . . . . . . . . . . Redirected to Shielding 173 | . . . . . . . . . 173 Core Remaining (%) 73 | 100 . . 47 74 . . . . . Volleys Fired 239 | . 63 7 30 107 8 . . . 24 Largest 2 | . 2 2 2 2 2 . . . 2 Hottest 146 | . 88 98 98 138 105 . . . 146 Shots Fired 421 | . 125 13 48 183 12 . . . 40 Gun 162 | . 76 4 17 31 2 . . . 32 Cannon 237 | . 49 7 31 142 8 . . . . Launcher 14 | . . 2 . 10 2 . . . . Special 8 | . . . . . . . . . 8 Kinetic 144 | . 63 4 17 58 2 . . . . Thermal 255 | . 62 7 31 115 8 . . . 32 Explosive 22 | . . 2 . 10 2 . . . 8 Electromagnetic . | . . . . . . . . . . Robot Hit Streak 16 | . 12 5 16 12 3 . . . 7 Robot Miss Streak 6 | . 5 2 2 6 1 . . . 4 Penetration Max . | . . . . . . . . . . Secondary Targets . | . . . . . . . . . . Shots Hit Robots 252 | . 65 6 28 100 22 12 . . 19 Core Hits 157 | . 28 7 7 92 10 3 . . 10 Critical Kills 1 | . . . 1 . . . . . . Critical Parts Destroyed 2 | . . . . . . 2 . . . Critical Strikes 5 | . 1 . 1 . 1 2 . . . Burn 1 | . 1 . . . . . . . . Meltdown 1 | . . . 1 . . . . . . Smash 3 | . . . . . 1 2 . . . Melee Attacks 72 | . . . . . 26 31 . 4 11 Impact 56 | . . . . . 26 15 . 4 11 Slashing 3 | . . . . . . 3 . . . Piercing 13 | . . . . . . 13 . . . Sneak Attacks 3 | . . . . . 2 1 . . . Combat Hostiles . | . . . . . . . . . . Follow-up Attacks 1 | . . . . . . 1 . . . Damage Inflicted 8481 | . 922 248 505 3440 1053 513 . . 1800 Guns 1260 | . 348 6 180 224 . . . . 502 Cannons 3006 | . 574 130 325 1902 75 . . . . Explosions 2418 | . . 112 . 1302 149 . . . 855 Melee 1545 | . . . . . 829 513 . . 203 Ramming 12 | . . . . 12 . . . . . Kinetic 1061 | . 249 6 180 626 . . . . . Thermal 3205 | . 673 130 325 1500 75 . . . 502 Explosive 2418 | . . 112 . 1302 149 . . . 855 Electromagnetic . | . . . . . . . . . . Impact 1385 | . . . . . 829 353 . . 203 Slashing 288 | . . . . . . 48 . . 240 Piercing 112 | . . . . . . 112 . . . Highest Corruption 8 | . 1 1 1 . . 1 1 . 8 Average Corruption 1 | . 1 1 1 . . 1 1 . 5 Corruption Purged 3 | . . . . . . . 1 . 2 Corruption Blocked . | . . . . . . . . . . Effects 16 | . . 4 6 . . 3 . . 3 Message Errors 4 | . . 2 . . . 1 . . 1 Matter Fused 8 | . . 1 5 . . 2 . . . Data Loss (minor) 2 | . . 1 . . . . . . 1 Data Loss (major) 1 | . . . . . . . . . 1 Misfires 1 | . . . 1 . . . . . . Overload Shots . | . . . . . . . . . . Overflow Damage 489 | . 5 . . 23 196 137 . . 128 Projectiles 47 | . 5 . . 5 . . . . 37 Explosions 76 | . . . . 18 . . . . 58 Melee 366 | . . . . . 196 137 . . 33 Knockbacks 17 | . . . . 10 1 3 . . 3 Impact 7 | . . . . . 1 3 . . 3 Kinetic 8 | . . . . 8 . . . . . Secondary 2 | . . . . 2 . . . . . Self-Inflicted Damage 132 | . . 49 . 83 . . . . . Shots 4 | . . 1 . 3 . . . . . Rammed 2 | . . . . 2 . . . . . Targets Rammed 2 | . . . . 2 . . . . . Kicked . | . . . . . . . . . . Crushed . | . . . . . . . . . . Highest Temperature 454 | . 296 133 25 454 66 . . . 93 Average Temperature 97 | . 94 53 12 115 29 . . . 27 Received Heat Transfer 1469 | . 99 18 66 621 183 . . . 482 Effects 6 | . 1 . . 5 . . . . . Shutdowns 1 | . . . . 1 . . . . . Energy Bleed 2 | . 1 . . 1 . . . . . Interference 2 | . . . . 2 . . . . . Damage (minor) 1 | . . . . 1 . . . . . Siege Activations . | . . . . . . . . . . Robots Corrupted . | . . . . . . . . . . Combat Hostiles . | . . . . . . . . . . Parts Fried 6 | . . . . . 4 2 . . . Impact Corruptions 15 | . . . . . 6 6 . . 3 Robots Melted 1 | . . . 1 . . . . . . Combat Hostiles 1 | . . . 1 . . . . . . Parts Melted 9 | . 2 . 2 4 . . . . 1 Heat Transferred 5291 | . 1369 222 592 2405 111 . . . 592 Parts Sabotaged . | . . . . . . . . . . Parts Stolen . | . . . . . . . . . . Parts Stripped . | . . . . . . . . . . Power Chain Reactions . | . . . . . . . . . . Alert | -11 -10 -10 -10 -8 -7 -7 -7 -7 -7 ------- Run | Yrd Mat Min Sub Mat Fac Low Low Zio Dee Peak Influence 704 | . 156 169 . 704 447 . . . . Initial 319 | . . 37 . . 319 . . . . Average 315 | . 81 79 . 517 334 . . . . Maximum Alert Level 3 | . . . . 3 2 . . . . Low Security (%) 40 | 100 100 100 . 4 . . . . . Level 1 25 | . . . . 24 82 . . . . Level 2 33 | . . . . 69 17 . . . . Level 3 . | . . . . 1 . . . . . Level 4 . | . . . . . . . . . . Level 5 . | . . . . . . . . . . High Security . | . . . . . . . . . . Max Security . | . . . . . . . . . . Squads Dispatched 11 | . 1 . . 5 5 . . . . Investigation 2 | . . . . . 2 . . . . Extermination 2 | . . . . . 2 . . . . Reinforcement 6 | . 1 . . 4 1 . . . . Assault 1 | . . . . 1 . . . . . Garrison . | . . . . . . . . . . Intercept . | . . . . . . . . . . Searches Triggered . | . . . . . . . . . . Construction Impeded 1 | . . . . 1 . . . . . Haulers Reinforced . | . . . . . . . . . . Active Scanning Responses . | . . . . . . . . . . Cargo Convoy Interrupts . | . . . . . . . . . . Stealth | -11 -10 -10 -10 -8 -7 -7 -7 -7 -7 --------- Run | Yrd Mat Min Sub Mat Fac Low Low Zio Dee Distress Signals 6 | . 1 . . 5 . . . . . Communications Jammed . | . . . . . . . . . . Distress Signals . | . . . . . . . . . . Times Spotted 193 | . 17 5 12 56 14 4 . . 85 Peak Tracking Total 70 | . 4 3 6 7 4 3 . . 70 Tactical Retreats 10 | . 1 . . 4 2 . . . 3 Traps | -11 -10 -10 -10 -8 -7 -7 -7 -7 -7 ------- Run | Yrd Mat Min Sub Mat Fac Low Low Zio Dee Traps Triggered 4 | . 1 . . . 3 . . . . Indirectly . | . . . . . . . . . . Trap Hack Attempts . | . . . . . . . . . . Triggered . | . . . . . . . . . . Disarmed . | . . . . . . . . . . Reprogrammed . | . . . . . . . . . . Reused . | . . . . . . . . . . Traps Extracted . | . . . . . . . . . . Installed . | . . . . . . . . . . Triggered 1 | . . . . . . 1 . . . Most Traps Carried 5 | . . . . . . 5 5 5 5 Machines | -11 -10 -10 -10 -8 -7 -7 -7 -7 -7 ---------- Run | Yrd Mat Min Sub Mat Fac Low Low Zio Dee Machines Disabled 8 | . 2 . 1 3 . . . . 2 Max in Single Turn 1 | . 1 . 1 1 . . . . 1 Garrison Access 1 | . . . . 1 . . . . . Machines Repaired . | . . . . . . . . . . Machines Dismantled . | . . . . . . . . . . Machines Sabotaged . | . . . . . . . . . . Overloaded Fab Kills . | . . . . . . . . . . Hacking | -11 -10 -10 -10 -8 -7 -7 -7 -7 -7 --------- Run | Yrd Mat Min Sub Mat Fac Low Low Zio Dee Machines Accessed 18 | . 5 . 1 10 . 1 1 . . Terminals 14 | . 5 . . 9 . . . . . Fabricators . | . . . . . . . . . . Repair Stations . | . . . . . . . . . . Recycling Units . | . . . . . . . . . . Scanalyzers . | . . . . . . . . . . Garrison Access 1 | . . . . 1 . . . . . Total Hacks 46 | . 9 . 9 26 . 1 1 . . Successful 27 | . 7 . 9 9 . 1 1 . . Failed 19 | . 2 . . 17 . . . . . Catastrophic 2 | . . . . 2 . . . . . Database Lockouts . | . . . . . . . . . . Manual 28 | . 9 . 1 15 . . . 3 . Terminals 33 | . 9 . . 24 . . . . . Fabricators . | . . . . . . . . . . Repair Stations . | . . . . . . . . . . Recycling Units . | . . . . . . . . . . Scanalyzers . | . . . . . . . . . . Garrison Access 2 | . . . . 2 . . . . . Terminal Hacks 24 | . 6 . 9 7 . 1 1 . . Record 8 | . . . 8 . . . . . . Robot Analysis 2 | . 2 . . . . . . . . Prototype ID Bank 2 | . 1 . . 1 . . . . . Open Door 2 | . . . . . . 1 1 . . Branch Access Points 1 | . . . . 1 . . . . . Terminal Index 2 | . . . . 2 . . . . . Locate Traps 1 | . . . . 1 . . . . . Maintenance Status 1 | . 1 . . . . . . . . Hauler Manifests 2 | . 1 . . 1 . . . . . Registered Components 1 | . 1 . . . . . . . . Zone Layout 1 | . . . . 1 . . . . . Derelict Proto ID Bank 1 | . . . 1 . . . . . . Fabricator Hacks . | . . . . . . . . . . Repair Station Hacks . | . . . . . . . . . . Recycling Unit Hacks . | . . . . . . . . . . Scanalyzer . | . . . . . . . . . . Garrison Access Hacks 1 | . . . . 1 . . . . . Seal Access 1 | . . . . 1 . . . . . Unauthorized Hacks 2 | . 1 . . 1 . . . . . Terminals 2 | . 1 . . 1 . . . . . Assimilate 1 | . . . . 1 . . . . . Botnet 1 | . 1 . . . . . . . . Fabricators . | . . . . . . . . . . Repair Stations . | . . . . . . . . . . Recycling Units . | . . . . . . . . . . Scanalyzers . | . . . . . . . . . . Garrison Access . | . . . . . . . . . . Data Cores Recovered 1 | . 1 . . . . . . . . Used 1 | . 1 . . . . . . . . Hacking Detections 13 | . 4 . . 9 . . . . . Full Trace Events . | . . . . . . . . . . Feedback Events . | . . . . . . . . . . Feedback Blocked . | . . . . . . . . . . Robot Schematics Acquired 3 | . . . . . . . . 3 . Robots Built . | . . . . . . . . . . Authchips . | . . . . . . . . . . Time . | . . . . . . . . . . Total Robot Build Rating . | . . . . . . . . . . Part Schematics Acquired 15 | . . . . . . . . 15 . Parts Built . | . . . . . . . . . . Authchips . | . . . . . . . . . . Time . | . . . . . . . . . . Total Part Build Rating . | . . . . . . . . . . Parts Repaired . | . . . . . . . . . . Time . | . . . . . . . . . . Parts Recycled . | . . . . . . . . . . Recycled Matter . | . . . . . . . . . . Retrieved Matter . | . . . . . . . . . . Retrieved Components . | . . . . . . . . . . Parts Scanalyzed . | . . . . . . . . . . Part Schematics Acquired . | . . . . . . . . . . Parts Damaged . | . . . . . . . . . . Bothacking | -11 -10 -10 -10 -8 -7 -7 -7 -7 -7 ------------ Run | Yrd Mat Min Sub Mat Fac Low Low Zio Dee Used RIF Installer . | . . . . . . . . . . Robots Hacked . | . . . . . . . . . . Non-combat . | . . . . . . . . . . Combat . | . . . . . . . . . . Robot Hacks Applied . | . . . . . . . . . . Relay Couplers Released . | . . . . . . . . . . Fabnet Peak Effective % . | . . . . . . . . . . Robots Rewired . | . . . . . . . . . . Allies Hacked . | . . . . . . . . . . Hacks Repelled . | . . . . . . . . . . Allies | -11 -10 -10 -10 -8 -7 -7 -7 -7 -7 -------- Run | Yrd Mat Min Sub Mat Fac Low Low Zio Dee Total Allies 13 | . . . . 1 . . . 12 . Largest Group 12 | . . . . 1 . . . 12 12 Highest-Rated Group 479 | . . . . 10 . . . 479 479 Highest-Rated Ally 96 | . . . . 10 . . . 96 96 Total Orders . | . . . . . . . . . . Ally Attacks 122 | . . . . . . . . . 122 Total Damage 1950 | . . . . . . . . . 1950 Kills 16 | . . . . . . . . . 16 Allies Corrupted . | . . . . . . . . . . Allies Melted 1 | . . . . . . . . . 1 Intel | -11 -10 -10 -10 -8 -7 -7 -7 -7 -7 ------- Run | Yrd Mat Min Sub Mat Fac Low Low Zio Dee Robot Analysis Total 2 | . 2 . . . . . . . . Derelict Logs Recovered 6 | . . 1 2 . . . 2 1 . Drone Launches . | . . . . . . . . . . Drone Recoveries . | . . . . . . . . . . Exploration | -11 -10 -10 -10 -8 -7 -7 -7 -7 -7 ------------- Run | Yrd Mat Min Sub Mat Fac Low Low Zio Dee Turns Passed 9549 | 98 993 554 1135 1872 759 633 639 1630 1236 Spaces Moved 5779 | 58 487 250 642 876 473 426 540 1244 783 Core 14 | 9 . . . . . . . . 5 Treads 2329 | 49 487 250 642 820 81 . . . . Legs 418 | . . . . . . . . . 418 Wheels 2893 | . . . . 56 392 411 540 1244 250 Hover 1 | . . . . . . . . . 1 Flight 124 | . . . . . . 15 . . 109 Fastest Speed 40 | 50 160 160 160 130 115 115 115 115 40 Average Speed 141 | 147 160 160 160 167 135 125 115 126 137 Slowest Speed 340 | 160 160 160 160 260 162 140 115 130 340 Overloaded Moves . | . . . . . . . . . . Propulsion Burnouts . | . . . . . . . . . . Robots Hopped 9 | . . . . . . . . . 9 Cave-ins Triggered . | . . . . . . . . . . Exploration Rate (%) 55 | 5 80 52 25 81 13 54 75 82 89 Regions Visited 9 Branch Regions 6 Pre-discovered Areas 2 | . . . 1 . . . 1 . . Known Exits Taken 5 | . . 1 . . 1 1 1 1 . Unknown Exits Taken 4 | 1 1 . 1 1 . . . . . Scrap Searched 13 | . . 1 3 . . 3 3 3 . Spaces Dug 19 | . . . . 12 1 4 . 2 . Terrain Destroyed 194 | . . 15 . 123 15 4 . 2 35 Melee 7 | . . . . . 1 4 . 2 . Projectile 39 | . . . . 29 . . . . 10 AOE 148 | . . 15 . 94 14 . . . 25 Terrain Rammed . | . . . . . . . . . . Walls Destroyed . | . . . . . . . . . . Machines Disabled . | . . . . . . . . . . Actions | -11 -10 -10 -10 -8 -7 -7 -7 -7 -7 --------- Run | Yrd Mat Min Sub Mat Fac Low Low Zio Dee Total 6615 | 68 594 390 709 1095 535 490 557 1294 883 Wait 249 | . 14 129 2 43 7 . 17 29 8 Move 5755 | 57 486 249 641 875 472 425 539 1243 768 Hop 6 | . . . . . . . . . 6 Pick Up 83 | 5 12 . 9 21 6 13 . 5 12 Fast Attach 35 | 6 1 2 2 12 3 1 . 1 7 Attach 28 | . 2 . 2 2 3 7 . 2 10 Detach 5 | . 1 . . 2 . . . . 2 Swap 47 | . 4 2 3 13 3 4 1 6 11 Drop 92 | . 11 1 15 18 7 12 . 4 24 Fire 239 | . 63 7 30 107 8 . . . 24 Melee 69 | . . . . . 26 28 . 4 11 Ram . | . . . . . . . . . . Kick . | . . . . . . . . . . Crush 2 | . . . . 2 . . . . . Escape Stasis . | . . . . . . . . . . Rewire . | . . . . . . . . . . Trap . | . . . . . . . . . . Miscellaneous 5 | . . . 5 . . . . . . Route ------- -11/Scrapyard -10/Materials (discovered 4 exits: [*Mat x2] / [*Min x2]) -10/Mines -10/Subcaves -8/Materials (discovered 3 exits: [*Fac x3]) -7/Factory (discovered 2 exits: [*Sto] / *Low) -7/Lower Caves -7/Lower Caves -7/Zion -7/Deep Caves (discovered 1 exit: *Pro) History --------- Turn | Location | Event 22 | -11/Scrapyard | Discovered new exit (range 13) 99 | -11/Scrapyard | Entered Materials 186 | -10/Materials | Discovered new exit (range 15) 230 | -10/Materials | Discovered new exit (range 16) 317 | -10/Materials | Build established: Mutant 534 | -10/Materials | Discovered new exit (range 7) 1010 | -10/Materials | Discovered new exit (range 10) 1092 | -10/Materials | Entered Mines 1173 | -10/Mines | Assembled infested the area 1178 | -10/Mines | Assisted by a Guerilla fighting off Assembled 1534 | -10/Mines | Identified exit to Subcaves 1646 | -10/Mines | Entered Subcaves 1834 | -10/Subcaves | Discovered new exit (range 10) 1842 | -10/Subcaves | Ambushed by swarm of Subdwellers 1936 | -10/Subcaves | Learned Materials garrison access intel 2152 | -10/Subcaves | Core integrity fell below 50% 2233 | -10/Subcaves | Visited 4L-MR0's lab 2249 | -10/Subcaves | Found Flightbrick 2449 | -10/Subcaves | Shifting Twisted Machinery released Sub. Laser 2450 | -10/Subcaves | Learned location of Storage (-7) 2781 | -10/Subcaves | Entered Materials 2781 | -8/Materials | Evolved 4 slots: Propulsion x3, Utility x1 2782 | -8/Materials | Loaded intel: 1 garrison access location 3942 | -8/Materials | Build established: Scavenger-Mutant 3990 | -8/Materials | Discovered new exit (range 10) 4231 | -8/Materials | Discovered new exit (range 11) 4381 | -8/Materials | First assault squad dispatched 4607 | -8/Materials | Discovered new exit (range 15) 4653 | -8/Materials | Entered Factory 4653 | -7/Factory | Evolved 2 slots: Propulsion x1, Utility x1 5153 | -7/Factory | Discovered new exit (range 6) 5358 | -7/Factory | Discovered new exit (range 6) 5411 | -7/Factory | Identified exit to Lower Caves 5412 | -7/Factory | Entered Lower Caves 5417 | -7/Lower Caves | Encountered a Warlord checkpoint 5436 | -7/Lower Caves | Lost 4 parts (2n1u1w) 5636 | -7/Lower Caves | Found Alien Artifact 5803 | -7/Lower Caves | Attached Flightbrick, gained temporary slots: Utility x3 5983 | -7/Lower Caves | Discovered new exit (range 8) 6037 | -7/Lower Caves | Identified exit to Lower Caves 6045 | -7/Lower Caves | Entered another Lower Caves area 6100 | -7/Lower Caves | Build established: Gladiator 6138 | -7/Lower Caves | Learned location of Zion (-7) 6433 | -7/Lower Caves | Learned Factory trap positions 6680 | -7/Lower Caves | Discovered new exit (range 3) 6683 | -7/Lower Caves | Identified exit to Zion 6684 | -7/Lower Caves | Entered Zion 6771 | -7/Zion | Learned Factory emergency access door positions 6803 | -7/Zion | Given the Hacking Drone Bay 6803 | -7/Zion | Found Prototype Device 6804 | -7/Zion | Identified Hacking Drone Bay 6876 | -7/Zion | Learned Factory stockpile data 7007 | -7/Zion | Found Prototype Special Weapon 7007 | -7/Zion | Identified RU-N14's Throwing Claymores 7008 | -7/Zion | Identified Core Expander 7008 | -7/Zion | Installed Core Expander, added new Utility slot 7012 | -7/Zion | Found RU-N14's Throwing Claymores 7015 | -7/Zion | Found RU-N14's Throwing Claymores 7017 | -7/Zion | Found RU-N14's Throwing Claymores 7098 | -7/Zion | Gained Derelict followers 7164 | -7/Zion | Gained Derelict followers 7242 | -7/Zion | Given A8's code to call for help 7309 | -7/Zion | Build established: Mutant 7979 | -7/Zion | Discovered new exit (range 5) 7980 | -7/Zion | Saw the warning signs outside the Deep Caves entrance 8005 | -7/Zion | Enhanced Grunt warped into view, answering call for help 8009 | -7/Zion | Enhanced Grunt warped into view, answering call for help 8295 | -7/Zion | Identified exit to Deep Caves 8314 | -7/Zion | Entered Deep Caves 8314 | -7/Deep Caves | Accompanied by 12 allies 8459 | -7/Deep Caves | Attacked by Z-Imprinter 8464 | -7/Deep Caves | Z-Facility disabled 8467 | -7/Deep Caves | Allies destroyed Z-Imprinter 8491 | -7/Deep Caves | Found Prototype Protection 8492 | -7/Deep Caves | Identified Zio. Weapon Casing 8499 | -7/Deep Caves | Lost 4 allies 8624 | -7/Deep Caves | Found Zio. Weapon Casing 8730 | -7/Deep Caves | Lost 6 allies 8797 | -7/Deep Caves | Build established: Scavenger-Mutant 8816 | -7/Deep Caves | Found Prototype Protection 8816 | -7/Deep Caves | Identified Zio. Heavy Carapace 8862 | -7/Deep Caves | Found Zio. Heavy Carapace 9070 | -7/Deep Caves | Discovered new exit (range 15) 9178 | -7/Deep Caves | Identified exit to Proximity Caves 9266 | -7/Deep Caves | Spotted AG-12801 9281 | -7/Deep Caves | Exposed GOLEM chamber 9282 | -7/Deep Caves | Triggered Deep Caves wall 9451 | -7/Deep Caves | Core integrity fell below 50% 9521 | -7/Deep Caves | Spotted AS-84842 9525 | -7/Deep Caves | Spotted AS-74683 9539 | -7/Deep Caves | Found GOLEM Unit 9543 | -7/Deep Caves | Spotted AG-93527 9548 | -7/Deep Caves | Core integrity fell below 20% 9550 | -7/Deep Caves | Destroyed by AG-93527 with Assembled Focal Cannon Last Messages --------------- 09537_ as-56895 destroyed. 09538_ Penetrated by Slug. 09538_ A GOLEM Unit tumbles out of the Wall Chamber. 09538_ Slug penetrates as-38777. 09538_ as-38777 destroyed. 09538_ Dropped Exp. Heat Sink. 09539_ Acquired GOLEM Unit. 09540_ GOLEM Unit beginning Asb. Alloy Leg integration. 09544_ CE-YTG(g) destroyed. 09545_ AG-93527: "DSI9AT1D G8OHIBQ29FWG 26R186 QD12WHW8W33 TDK1 81FTS" 09547_ JQ-3AQ(b) destroyed. 09547_ Zio. Light DM Reactor destroyed. 09547_ Flightbrick destroyed. 09547_ Temporary Utility slot lost. 09548_ Dropped Mak. System Restoration Module. 09549_ as-26938 destroyed. 09550_ Slug penetrates 0E-6J6(M). Map ----- +----------------------------------------------------+ | | | | | | | | | | | | | | | | | | | ??????????????????????????????????? | | ???????????? ?????????????????????? | | ???????????? ???????????????????? | | ??????????? ???????????????## | | ??????????? #?#?????????????# | | ??????????? # #?????????????# | | ??????????? # #?????????????# | | ??????????? #?#???????????## | | ??????????? # #???????????## | | ??????????? #??????????## | | ????????""" #??????????# | | ????????" ##?????????# | | ????????" # #???????# | | ????????? ???????## | | ????????? ???????# | | ?????????" G #???????# | | ?????????"@ ##??????### | | ?????????" ! #????## | | ?????????"a #??????## | | ????????"" a #??????# | | ??????###a a #??????# | | ??""""" aa * #?????# | | ??" M ????## ## | | ??" a ?????###?? | | ??" aa a * ! ???????? | | ??" %!aaaa! ???????? | | ??" aaa!a ##?????? | | ??" a ! #?????? | | ??" aa a a #?????? | | ??""""" aaa aa = = #?????? | | ??????###a a a ! != #?????? | | ????????" a ! #?????? | | ????????"" = = #?????? | | ?????????" = = #????## | | ????????"" ###### | | ????????" = [ = = ## | | ????????# # | | ????????" # | | ????????" [ # | | ????????" [ [ [ | | ????????""" = ! " | +----------------------------------------------------+ Best States ------------- Heat Dissipation 60 Energy Generation 27 Energy Capacity 890 Matter Stores 300 Matter Capacity 300 Sight Range 16 Robot Scan Range 15 Terrain Scan Density 10 Armor Coverage 1200 Utility Shielding 33 Weapon Shielding 100 Evasion (%) 61 Recoil Reduction 5 Force Boost 20 Item Schematics ----------------- Gauss Cannon | -7/Zion | Archive Hvy. Flak Cannon | -7/Zion | Archive Armor Integrity Analyzer | -7/Zion | Archive Bore Cannon | -7/Zion | Archive Core Analyzer | -7/Zion | Archive Thermic Laser | -7/Zion | Archive Mak. Hammer | -7/Zion | Archive Mak. Trap Scanner | -7/Zion | Archive Hvy. Treads | -7/Zion | Archive Greatsword | -7/Zion | Archive Arc Thrower | -7/Zion | Archive Spear | -7/Zion | Archive Imp. Actuator Array | -7/Zion | Archive Beamcaster | -7/Zion | Archive Mak. Hacking Suite | -7/Zion | Archive Robot Schematics ------------------ A-02 Transporter | -7/Zion | Archive M-28 Smith | -7/Zion | Archive S-27 Virus | -7/Zion | Archive Fabricated ------------ Nothing Alien Tech Used ----------------- Core Expander Achievements -------------- Adventurer Are We The Baddies? Signs Are For Wimps That's One Door That Should Stay Closed Challenges ------------ None Game ------ Seed SpacefoldLatentMinigun Manual? 0 Play Time 01:33:57 Cumulative 47.6 hours Start 2024.04.17 @ 14:55:34 End 2024.04.18 @ 08:25:35 Sessions 9 Manual Loads 0 Difficulty Rogue Special Mode None Game No. 81 Rogue 59 Adventurer 22 Explorer 0 Win Type - Total 1 Types 1/0/0/0/0/0/0/0/0 Lore% 30 Gallery% 46 Achievement% 42 Wizard Run 0 Options --------- Layout 2 ASCII 0 Keyboard 1 Movement Mouse Keybinds 0 Fullscreen 2 Font 24/Smallcaps Map View 50x44 Zoom Use 0% Tactical HUD 1 Map Filters NONE Filters NONE Steam 1 RUN: bf94c0aa-a476-44eb-bbe0-5073bc0dea07